[Event "13th London Chess Classic 2023"]
[Site "London"]
[Date "2023.12.07"]
[Round "6.5"]
[White "Moussard, Jules"]
[Black "Adams, Michael"]
[Result "0-1"]
[ECO "C88"]
[WhiteElo "2639"]
[BlackElo "2670"]
[Annotator "TA"]
[PlyCount "64"]
[EventDate "2023.11.27"]
[EventType "tourn"]
[EventCountry "ENG"]
[SourceTitle "playchess.com"]
[Source "ChessBase"]
[SourceQuality "1"]
[TimeControl "40/5400+30:1800+30"]

{[%evp 16,64,12,35,37,35,29,15,35,0,0,0,0,0,0,0,0,15,27,24,29,31,27,28,51,0,95,93,70,80,104,100,104,103,125,87,121,127,164,143,172,131,172,148,239,164,332,334,675,-239,-224]} 1. e4 {[%emt 0:06:29]} e5 {[%emt 0:00:06]} 2. Nf3 {[%emt 0:00:07]} Nc6 {[%emt 0:00:06]} 3. Bb5 {[%emt 0:00:06]} a6 {[%emt 0:00:07]} 4. Ba4 {[%emt 0:00:05]} Nf6 {[%emt 0:00:05]} 5. O-O {[%emt 0:00:08]} Be7 {[%emt 0:00:06]} 6. Re1 {[%emt 0:00:06]} b5 {[%emt 0:00:06]} 7. Bb3 {[%emt 0:00:05]} O-O {[%emt 0:00:07]} 8. h3 {[%emt 0:00:13]} Bb7 {[%emt 0:01:27]} 9. d3 {[%emt 0:00:24]} d5 {[%emt 0:02:23] C88: Closed Ruy Lopez: Anti-Marshall Systems.} 10. exd5 {[%emt 0:00:14]} Nxd5 {[%emt 0:00:05]} 11. Nbd2 {[%emt 0:00:21]} Nd4 {[%emt 0:06:46] The position is equal.} 12. Nxd4 {[%emt 0:00:33]} exd4 {[%emt 0:00:07]} 13. Qf3 {[%emt 0:00:41][%cal Oe1e7] [#] And now Rxe7! would win.} Rb8 $146 {[%emt 0:10:00][%cal Od5e3]} ({Predecessor:} 13... c5 14. Rxe7 Qxe7 15. Bxd5 Bxd5 16. Qxd5 Qe1+ 17. Nf1 Rae8 18. Bh6 Qe6 19. Qxe6 Rxe6 {0-1 Maksimovic,B (2476)-Svane,R (2631) Titled Tuesday intern op 22nd Aug Early blitz 2023 (5)}) 14. Ne4 {[%emt 0:00:34]} c5 {[%emt 0:07:31]} 15. a4 {[%emt 0:00:55]} Nf6 {[%emt 0:07:58][%cal Oc5c4] White must now prevent ...c4!} 16. axb5 {[%emt 0:00:22]} axb5 {[%emt 0:01:30]} (16... Nxe4 {looks sharper.} 17. bxa6 Nd2 18. Qe2 Nxb3 19. cxb3 Bd6) 17. Bf4 {[%emt 0:00:29]} Nxe4 {[%emt 0:03:08]} 18. Bxb8 {[%emt 0:00:41]} ({But not} 18. dxe4 Bd6 19. Bxd6 Qxd6 $11) 18... Qxb8 {[%emt 0:00:07]} 19. Rxe4 {[%emt 0:00:13]} Bf6 {[%emt 0:03:43] [#]} 20. g3 {[%emt 0:06:14]} h6 {[%emt 0:07:36] [#]} (20... Qc7 $11) 21. Qf5 $1 $16 {[%emt 0:08:07] Threatens to win with Bd5.} Bxe4 {[%emt 0:09:00]} 22. Qxe4 {[%emt 0:00:16]} Rc8 {[%emt 0:05:44] Black is weak on the light squares} 23. Ra6 {[%emt 0:11:11][%cal Ba1a6,Ba6b6,Bb6b7][%mdl 32]} Qc7 {[%emt 0:02:07]} 24. Bd5 {[%emt 0:06:43][%cal Bb3d5,Bd5c6,Bc6b5,Bb5c4][%mdl 32]} Qd7 {[%emt 0:02:56] Prevents Qf5.} 25. Rb6 {[%emt 0:04:52] Rb7 is the strong threat.} Rd8 {[%emt 0:02:11]} 26. Bc6 {[%emt 0:07:32]} Qxh3 {[%emt 0:00:07]} 27. Bxb5 {[%emt 0:00:22]} Qh5 {[%emt 0:07:33]} 28. Bc4 {[%emt 0:02:31]} Rf8 {[%emt 0:01:52]} (28... Qd1+ $2 29. Kg2 Qh5 30. Rd6 $18) 29. Kg2 {[%emt 0:01:52]} Qg5 {[%emt 0:02:42]} (29... Qe5 $16 30. Qxe5 Bxe5) 30. Rb7 {[%emt 0:06:20][%cal Ob7f7] Rxf7! would kill now.} h5 $2 {[%emt 0:00:14]} (30... Qe5 31. f4 Qxe4+ 32. dxe4 Bd8) 31. Bxf7+ $18 {[%emt 0:01:03]} ({Not} 31. Rxf7 Rxf7 32. Qe8+ Kh7 33. Bxf7 (33. f4 Rf8 $16) 33... g6 $16) 31... Rxf7 $2 {[%emt 0:00:54]} (31... Kh8 32. Rd7 Qg4) 32. Qe6 $4 {[%emt 0:00:29][%mdl 8192]} (32. f4 $18 {is the narrow road to win.} Qg4 33. Rb8+ Rf8 34. Qd5+ Kh7 35. Rxf8 Qe2+ 36. Kh3) 32... Be7 {[%emt 0:00:55] Black used his chance.   Weighted Error Value: White=0.27 (precise) /Black=0.45} 0-1

[Event "13th London Chess Classic 2023"]
[Site "London"]
[Date "2023.12.08"]
[Round "7.1"]
[White "Adams, Michael"]
[Black "Volokitin, Andrei"]
[Result "1/2-1/2"]
[ECO "B51"]
[WhiteElo "2670"]
[BlackElo "2660"]
[Annotator "TA"]
[PlyCount "56"]
[EventDate "2023.11.27"]
[EventType "tourn"]
[EventCountry "ENG"]
[SourceTitle "playchess.com"]
[Source "ChessBase"]
[SourceQuality "1"]
[TimeControl "40/5400+30:1800+30"]

{[%evp 9,56,8,16,15,26,26,23,18,14,28,46,44,39,8,9,7,5,0,0,0,0,3,0,0,23,0,0,0,0,0,0,0,0,0,0,0,0,0,0,0,0,0,0,0,0,0,0,0,0]} 1. e4 {[%emt 0:00:04]} c5 {[%emt 0:00:06]} 2. Nf3 {[%emt 0:00:07]} d6 {[%emt 0:00:06]} 3. Bb5+ {[%emt 0:00:05]} Nd7 {[%emt 0:00:05]} 4. O-O {[%emt 0:00:07]} a6 {[%emt 0:00:09]} 5. Be2 {[%emt 0:00:06]} Ngf6 {[%emt 0:00:07]} 6. d3 {[%emt 0:00:06] B51: Sicilian: Moscow Variation (3 Bb5+) without 3...Bd7.} b5 {[%emt 0:07:20]} 7. a4 {[%emt 0:00:28] next axb5 is good for White.} Bb7 {[%emt 0:00:23]} 8. axb5 {[%emt 0:02:40] White has an edge.} axb5 {[%emt 0:00:03]} 9. Rxa8 {[%emt 0:00:06]} Qxa8 {[%emt 0:00:34] [#]} 10. d4 $146 {[%emt 0:03:58]} ({Predecessor:} 10. b4 e6 11. Nc3 cxb4 12. Nxb5 Qb8 13. Bb2 Be7 14. Qd2 d5 15. e5 Ng4 16. Qf4 {1-0 Jahn,C (2048)-Strutinskaya,G (2214) WchT Seniors 50 2020 (3.15)}) 10... Bxe4 {[%emt 0:39:26]} 11. dxc5 {[%emt 0:08:00]} dxc5 {[%emt 0:01:23]} 12. Bxb5 {[%emt 0:17:17] [#] Threatens to win with Ne5.} Bc6 {[%emt 0:01:23]} 13. Qd3 {[%emt 0:09:16]} e6 {[%emt 0:05:10]} 14. Bg5 {[%emt 0:02:17]} Be7 {[%emt 0:02:18]} 15. Bxf6 {[%emt 0:03:13]} gxf6 {[%emt 0:13:02]} 16. Rd1 {[%emt 0:01:29]} Nb6 {[%emt 0:01:42][%cal Bd7b6,Bb6c4,Bc4b2][%mdl 32]} 17. Nc3 {[%emt 0:06:17][%cal Ob2b4]} O-O {[%emt 0:00:56] The position is equal.} 18. Bxc6 {[%emt 0:01:36]} Qxc6 {[%emt 0:00:02]} 19. Qe3 {[%emt 0:00:20]} Kh8 {[%emt 0:04:50]} 20. g3 {[%emt 0:04:58]} Nc4 {[%emt 0:02:25][%csl LRb2,LRe3]} 21. Qf4 {[%emt 0:04:28]} Nxb2 {[%emt 0:00:09]} 22. Rb1 {[%emt 0:05:58]} Nc4 {[%emt 0:00:10][%cal Of6f5][%mdl 64] [#] Deflection} 23. Ne4 $1 {[%emt 0:01:38]} Kg7 {[%emt 0:11:24]} 24. Qg4+ {[%emt 0:00:08]} Kh8 {[%emt 0:00:02]} 25. Qf4 {[%emt 0:00:08]} Kg7 {[%emt 0:02:30]} 26. Qg4+ {[%emt 0:00:55]} Kh8 {[%emt 0:00:02] Strongly threatening ...f5.} 27. Qf4 {[%emt 0:00:06]} Kg7 {[%emt 0:02:36]} 28. Qg4+ {[%emt 0:00:26]} Kh8 {[%emt 0:00:04] Weighted Error Value: White=0.03 (flawless) /Black=0.01 (flawless)} 1/2-1/2

[Event "13th London Chess Classic 2023"]
[Site "London"]
[Date "2023.12.08"]
[Round "7.2"]
[White "McShane, Luke J"]
[Black "Moussard, Jules"]
[Result "1/2-1/2"]
[ECO "B55"]
[WhiteElo "2626"]
[BlackElo "2639"]
[Annotator "TA"]
[PlyCount "72"]
[EventDate "2023.11.27"]
[EventType "tourn"]
[EventCountry "ENG"]
[SourceTitle "playchess.com"]
[Source "ChessBase"]
[SourceQuality "1"]
[TimeControl "40/5400+30:1800+30"]

{[%evp 11,72,16,14,32,15,16,8,26,27,19,15,8,4,2,0,-15,31,36,31,13,8,9,10,-20,-11,-20,27,36,29,12,3,19,24,5,52,26,26,26,26,26,21,26,23,24,79,30,87,79,103,0,0,0,0,0,0,0,0,0,0,0,9,6,6]} 1. e4 {[%emt 0:00:08]} c5 {[%emt 0:04:30]} 2. Nf3 {[%emt 0:00:10]} d6 {[%emt 0:00:05][%cal Bd7d6,Bd6d5,Bd5d4,Bd4c3][%mdl 32]} 3. d4 {[%emt 0:00:08]} cxd4 {[%emt 0:00:05]} 4. Nxd4 {[%emt 0:00:05]} Nf6 {[%emt 0:00:08]} 5. f3 {[%emt 0:00:04]} e5 {[%emt 0:04:30]} 6. Nb3 {[%emt 0:00:08]} d5 {[%emt 0:03:01]} 7. Bg5 {[%emt 0:00:09] B55: Sicilian: 2...d6 3 d4 cxd4 4 Nxd4 Nf6 5 f3.} d4 {[%emt 0:03:08]} 8. c3 {[%emt 0:00:12][%cal Rc3d4]} Nc6 {[%emt 0:10:22]} 9. Bb5 {[%emt 0:00:43] 9.cxd4 is more fashionable.} Qb6 {[%emt 0:13:57]} 10. Qd3 {[%emt 0:23:14]} Nd7 {[%emt 0:05:41]} 11. N1d2 {[%emt 0:08:47] [#]} dxc3 $146 {[%emt 0:09:30]} ({Predecessor:} 11... h6 12. Bh4 dxc3 13. bxc3 Be7 14. Bxe7 Kxe7 15. a4 Nc5 16. Nxc5 Qxc5 17. Nb3 Qb6 18. a5 Nxa5 19. Nxa5 Rd8 20. Qe2 Be6 21. Bc4 Rac8 22. Bxe6 Kxe6 23. Nxb7 {½-½ Helbich,J (2516)-Raijmaekers,R (2496) NED-SVK email 2017 [2]}) 12. Nc4 {[%emt 0:18:43]} Nb4 {[%emt 0:14:33]} 13. Qe2 {[%emt 0:00:36] Chess con chili.} Qg6 {[%emt 0:04:08]} (13... Qxb5 14. Nd6+ (14. bxc3 $2 Nc2+ {[%mdl 64] Double Attack} 15. Kd2 Na3 $19) 14... Bxd6 15. Qxb5 Nc2+ 16. Kf2 Nxa1 17. Rxa1 $16 (17. Nxa1 cxb2 18. Nc2 O-O $16)) (13... Nc2+ $1 $11 14. Kf1 (14. Qxc2 Qxb5 15. Qd3 Qc6 $11) 14... Qxb5 15. Nd6+ Bxd6 16. Qxb5 Nxa1 17. Nxa1 h6) 14. Be3 $14 {[%emt 0:00:47]} (14. Nxe5 $2 Qxg5 15. Nxd7 Bxd7 $19) 14... cxb2 {[%emt 0:04:01]} 15. Rd1 {[%emt 0:00:52]} (15. Nxb2 a6 16. Bxd7+ Bxd7 $15) 15... Nc6 {[%emt 0:00:32]} 16. Qxb2 {[%emt 0:20:08]} Bb4+ {[%emt 0:01:17]} 17. Kf2 {[%emt 0:00:07][%cal Od1d7]} (17. Nbd2 $5 {[%cal Rb5c6]} Be7 18. O-O $11 (18. Nxe5 $2 {is the wrong capture.} Qxg2 19. Rf1 Bh4+ 20. Bf2 Bf6 $19)) 17... O-O $1 {[%emt 0:01:11]} 18. Rc1 {[%emt 0:04:40]} Qe6 {[%emt 0:11:05]} (18... f5 {should be considered.} 19. exf5 Rxf5) 19. Rhd1 $11 {[%emt 0:01:16]} Be7 {[%emt 0:00:17]} 20. Nca5 {[%emt 0:10:31]} Nxa5 {[%emt 0:02:04]} 21. Nxa5 {[%emt 0:00:07][%cal Oc1c8]} Nb6 {[%emt 0:00:12]} 22. Nc4 {[%emt 0:02:40]} Rd8 {[%emt 0:01:53]} (22... Nd7 $11) 23. Nxb6 {[%emt 0:01:58]} ({Much worse is} 23. Qxe5 Rxd1 24. Rxd1 Nxc4 $17) (23. Nxe5 {seems wilder.} Qf6 24. a4 Be6 25. a5) 23... axb6 {[%emt 0:00:19]} 24. Bc4 {[%emt 0:02:56]} Qf6 {[%emt 0:01:09]} 25. Qxb6 {[%emt 0:01:03]} Qxb6 {[%emt 0:01:38]} 26. Bxb6 {[%emt 0:00:04]} Rxd1 {[%emt 0:00:27]} 27. Rxd1 {[%emt 0:00:02]} Ra4 {[%emt 0:02:32] [#]} (27... Be6 $11 28. Bxe6 fxe6) 28. Rc1 {[%emt 0:01:57]} (28. Bb3 $1 $16 {[%cal Rb3a4]} Rb4 29. Rc1) 28... Rb4 {[%emt 0:01:19]} (28... Be6 $11 {remains equal.} 29. Bb3 Ra6) 29. Bb3 $16 {[%emt 0:01:38]} Be6 {[%emt 0:00:09]} 30. Ba5 {[%emt 0:00:45]} ({Better is} 30. Bc5 $16 Bxc5+ 31. Rxc5) 30... Rb5 $11 {[%emt 0:00:41] The position is equal.} 31. Bxe6 {[%emt 0:00:28] aiming for Rc8+.} Bc5+ $1 {[%emt 0:01:01]} 32. Ke2 {[%emt 0:00:08] [#] And now Bd2 would win.} ({Wrong is} 32. Rxc5 $2 Rxc5 33. Bb6 Rc6 $19) 32... Rxa5 {[%emt 0:00:09]} 33. Bb3 {[%emt 0:00:22]} Kf8 {[%emt 0:00:17]} 34. Rd1 {[%emt 0:00:52]} Ke7 {[%emt 0:00:14] Repels Rd7+} 35. Rd5 {[%emt 0:00:07]} Bb6 {[%emt 0:00:05]} 36. Rxa5 {[%emt 0:00:03]} Bxa5 {[%emt 0:00:04] Weighted Error Value: White=0.09 (flawless) /Black=0.10 (very precise)} 1/2-1/2

[Event "13th London Chess Classic 2023"]
[Site "London"]
[Date "2023.12.08"]
[Round "7.3"]
[White "Royal, Shreyas"]
[Black "Gukesh D"]
[Result "1/2-1/2"]
[ECO "E53"]
[WhiteElo "2404"]
[BlackElo "2746"]
[Annotator "TA"]
[PlyCount "122"]
[EventDate "2023.11.27"]
[EventType "tourn"]
[EventCountry "ENG"]
[SourceTitle "playchess.com"]
[Source "ChessBase"]
[SourceQuality "1"]
[TimeControl "40/5400+30:1800+30"]

{[%evp 23,122,0,9,0,0,0,0,-6,14,5,10,0,0,-14,0,-7,-5,-24,-16,-20,0,0,37,43,65,75,60,61,103,96,95,101,137,153,131,0,0,0,71,39,49,40,58,0,0,0,0,-20,-15,-11,0,0,0,0,3,1,15,0,0,0,0,0,0,0,0,0,0,0,5,0,0,0,0,0,0,0,0,0,0,0,0,0,0,0,0,0,0,0,0,0,0,0,0,0,0,0,0,0,0,0,0]} 1. d4 {[%emt 0:00:05]} Nf6 {[%emt 0:00:08]} 2. c4 {[%emt 0:00:05]} e6 {[%emt 0:00:05]} 3. Nc3 {[%emt 0:00:24]} Bb4 {[%emt 0:01:02]} 4. e3 {[%emt 0:00:09]} O-O {[%emt 0:00:38]} 5. Bd3 {[%emt 0:00:07]} d5 {[%emt 0:00:23]} 6. a3 {[%emt 0:00:08]} Bxc3+ {[%emt 0:00:07]} 7. bxc3 {[%emt 0:00:05]} dxc4 {[%emt 0:00:46]} 8. Bxc4 {[%emt 0:00:08]} c5 {[%emt 0:00:05]} 9. Nf3 {[%emt 0:00:07]} Qc7 {[%emt 0:01:44]} 10. Be2 {[%emt 0:00:07]} b6 {[%emt 0:00:16]} 11. O-O {[%emt 0:00:35] 11.Bb2 gains popularity.} Bb7 {[%emt 0:00:04]} 12. Bb2 {[%emt 0:00:39]} Nbd7 {[%emt 0:00:08][%cal Bb8d7,Bd7f8,Bf8g6][%mdl 32]} 13. c4 {[%emt 0:01:26] E53: Nimzo-Indian: Rubinstein: Main Line (4...0-0 5 Nf3 d5 6 Bd3 c5 7 0-0).} Rfd8 {[%emt 0:00:12]} 14. Rc1 {[%emt 0:00:49]} Ng4 {[%emt 0:06:47]} 15. h3 {[%emt 0:03:31]} Ngf6 {[%emt 0:06:57]} 16. Re1 {[%emt 0:06:19] [#]} Rac8 $146 {[%emt 0:00:15]} ({Predecessor:} 16... Ne4 17. Bd3 Ndf6 18. Ne5 Rac8 19. Ng4 Nxg4 20. Qxg4 f5 21. Qh4 Qf7 22. f3 Nf6 {1-0 Noboa Silva,K (2329)-Quishpe Vaca,A (1970) ECU-ch Banos de Agua Santa 2020 (6)}) 17. Bf1 {[%emt 0:03:04]} Nf8 {[%emt 0:10:30]} 18. g3 {[%emt 0:08:44]} Ng6 {[%emt 0:01:49]} 19. Bg2 {[%emt 0:01:52]} Be4 {[%emt 0:03:35]} 20. Qe2 {[%emt 0:00:21]} Qb7 {[%emt 0:03:25]} 21. Red1 {[%emt 0:01:22]} Rd7 {[%emt 0:00:52]} 22. h4 {[%emt 0:02:11][%cal Od4d5,Bh3h4,Bh4h5][%mdl 32]} cxd4 {[%emt 0:07:40]} 23. exd4 {[%emt 0:04:38][%cal Od4d5]} Rdc7 {[%emt 0:00:53][%cal Ob6b5] [#]} 24. d5 $1 {[%emt 0:25:23]} exd5 {[%emt 0:00:15]} 25. Bh3 {[%emt 0:01:57] A strong pair of Bishops.} Re8 {[%emt 0:08:01][%cal Oe4f5] [#]} 26. Bxf6 $1 {[%emt 0:03:16]} gxf6 {[%emt 0:00:06] [#]} 27. h5 $1 {[%emt 0:05:32]} Ne5 {[%emt 0:16:39]} 28. Nxe5 {[%emt 0:00:07]} Rxe5 {[%emt 0:00:03]} (28... fxe5 $2 29. f3) 29. f4 {[%emt 0:04:41] Prevents h6} (29. h6 $16 {Black must now prevent Qg4+.} Bf5 30. Qf3) 29... Re8 $1 $36 {[%emt 0:00:08][%mdl 2048] Black fights for an advantage.} 30. h6 {[%emt 0:04:40]} Qc6 {[%emt 0:17:57]} (30... Kf8 $11) 31. Qg4+ $16 {[%emt 0:00:19]} Bg6 {[%emt 0:00:07] ...f5 is the strong threat.} 32. f5 $1 {[%emt 0:01:53][%mdl 64] Pin} dxc4 {[%emt 0:01:01]} 33. fxg6 {[%emt 0:03:54]} (33. Kh2 $14) 33... hxg6 $11 {[%emt 0:00:01] The position is equal.} 34. Qd4 {[%emt 0:03:47]} Re5 {[%emt 0:04:56]} 35. Rc3 {[%emt 0:05:41][%cal Oa3a4]} Kh7 {[%emt 0:01:21]} 36. Bg2 {[%emt 0:05:48]} Qc5 {[%emt 0:04:07]} 37. Qxc5 {[%emt 0:00:12]} Rexc5 {[%emt 0:00:08]} ({But not} 37... Rcxc5 38. Rd7 $14) 38. Rd6 {[%emt 0:00:36]} f5 {[%emt 0:00:44]} 39. a4 {[%emt 0:00:25]} Kxh6 {[%emt 0:02:40]} 40. Kf2 {[%emt 0:00:00]} Kg5 {[%emt 0:00:00]} 41. Bf1 {[%emt 0:04:57]} f4 {[%emt 0:08:37]} 42. gxf4+ {[%emt 0:00:23]} Kxf4 {[%emt 0:00:05]} 43. Rd4+ {[%emt 0:00:07]} Ke5 {[%emt 0:00:13]} 44. Rdxc4 {[%emt 0:01:12]} Rxc4 {[%emt 0:03:13]} 45. Rxc4 {[%emt 0:00:02][%mdl 4096] Endgame KRB-KR} Rc5 {[%emt 0:00:20]} 46. Ke3 {[%emt 0:01:14]} f5 {[%emt 0:00:09]} 47. Rh4 {[%emt 0:04:18]} g5 {[%emt 0:09:34][%cal Bg6g5,Bg5g4,Bg4g3][%mdl 32]} 48. Rh8 {[%emt 0:01:39]} f4+ {[%emt 0:01:30]} 49. Kd2 {[%emt 0:00:23]} g4 {[%emt 0:01:28]} 50. Rg8 {[%emt 0:01:21]} g3 {[%emt 0:00:09]} 51. Bd3 {[%emt 0:01:52]} Rc7 {[%emt 0:03:11]} 52. Rg5+ {[%emt 0:02:20]} Kd6 {[%emt 0:00:08]} 53. Be2 {[%emt 0:01:47]} Re7 {[%emt 0:00:19]} 54. Bf3 {[%emt 0:00:59]} Re3 {[%emt 0:00:12]} 55. Rxg3 {[%emt 0:00:24][%mdl 64] Deflection} fxg3 {[%emt 0:02:53]} 56. Kxe3 {[%emt 0:00:06] KB-K3P} Kc5 {[%emt 0:00:02]} 57. Bd1 {[%emt 0:00:33]} b5 {[%emt 0:00:06]} 58. axb5 {[%emt 0:00:05]} Kxb5 {[%emt 0:00:05]} (58... g2 $5 59. Kf2 $8 Kxb5 $11) 59. Kf3 {[%emt 0:00:03]} a5 {[%emt 0:00:04]} 60. Kxg3 {[%emt 0:00:03]} a4 {[%emt 0:00:03]} 61. Bxa4+ {[%emt 0:00:04]} Kxa4 {[%emt 0:00:01] Weighted Error Value: White=0.08 (flawless) /Black=0.09 (flawless)} 1/2-1/2

[Event "13th London Chess Classic 2023"]
[Site "London"]
[Date "2023.12.08"]
[Round "7.4"]
[White "Tabatabaei, M. Amin"]
[Black "Vitiugov, Nikita"]
[Result "1-0"]
[ECO "B93"]
[WhiteElo "2694"]
[BlackElo "2712"]
[Annotator "TA"]
[PlyCount "119"]
[EventDate "2023.11.27"]
[EventType "tourn"]
[EventCountry "ENG"]
[SourceTitle "playchess.com"]
[Source "ChessBase"]
[SourceQuality "1"]
[TimeControl "40/5400+30:1800+30"]

{[%evp 14,119,-15,-1,0,-24,-17,0,0,0,-11,-7,-4,-30,-14,-36,-8,-33,0,0,0,0,0,0,277,282,273,254,477,494,490,464,462,458,441,438,604,566,497,173,170,178,168,166,143,161,331,315,227,260,741,746,743,708,757,738,749,325,741,728,682,639,12838,12838,12843,581,12838,12835,12840,12840,12841,12841,12840,12837,12839,12830,12840,12835,12841,12837,12844,12844,12846,12836,12841,12842,12842,12843,12843,12843,12844,12843,12843,12843,12844,12844,12845,12845,12845,12846,12846,12847,12847,12847,12848,12848,12849,12849]} 1. e4 {[%emt 0:00:03]} c5 {[%emt 0:00:09]} 2. Nf3 {[%emt 0:00:06]} d6 {[%emt 0:00:05]} 3. d4 {[%emt 0:00:06]} cxd4 {[%emt 0:00:05]} 4. Nxd4 {[%emt 0:00:05]} Nf6 {[%emt 0:00:06]} 5. Nc3 {[%emt 0:00:05]} a6 {[%emt 0:00:06]} 6. f4 {[%emt 0:00:06]} e5 {[%emt 0:01:08]} 7. Nf3 {[%emt 0:00:07]} Nbd7 {[%emt 0:00:22]} 8. a4 {[%emt 0:00:08]} Qc7 {[%emt 0:01:08] Inhibits Bc4. is recently more successful than 8...Be7. B93: Sicilian Najdorf: 6 f4.} 9. g4 $5 {[%emt 0:00:07][%mdl 4] [#] Exploring less charted territory.} d5 $146 {[%emt 0:00:47] Hoping for ...Bb4.} ({Predecessor:} 9... exf4 10. g5 Nh5 11. Nd5 Qd8 12. Nxf4 Nxf4 13. Bxf4 Nc5 14. Bc4 Be7 15. e5 Be6 16. exd6 Bxc4 {0-1 L'Ami,E (2627)-Yilmaz,M (2609) Tata Steel-B 85th 2023 (3)}) 10. g5 {[%emt 0:00:07]} d4 {[%emt 0:00:06] The position is equal.} (10... Nxe4 11. Nxd5 Qa5+ 12. c3 $16) (10... dxe4 {looks sharper.} 11. gxf6 exf3 12. fxg7 f2+) 11. gxf6 {[%emt 0:00:04]} dxc3 {[%emt 0:00:05]} 12. fxg7 {[%emt 0:00:05]} Bxg7 {[%emt 0:00:10]} 13. f5 {[%emt 0:00:04]} cxb2 {[%emt 0:20:04]} 14. Bxb2 {[%emt 0:00:09]} Qb6 {[%emt 0:03:22] Repels Rg1} (14... Bf6 $5) 15. Ba3 {[%emt 0:00:12]} (15. Rb1 {simplifies} Qa5+ 16. Nd2 Bh6 17. c3) 15... Qe3+ {[%emt 0:02:55]} 16. Be2 {[%emt 0:00:07]} Qxe4 {[%emt 0:06:18]} 17. Rg1 {[%emt 0:00:41]} Bf8 {[%emt 0:00:42]} 18. Qd2 {[%emt 0:08:00]} Nc5 $2 {[%emt 0:09:23][%mdl 8192] Black is on the road to losing.} (18... Nf6 $11) 19. Ng5 $1 $18 {[%emt 0:18:29]} Qh4+ {[%emt 0:06:44]} (19... Qxa4 $2 20. Qd5 Bxf5 21. Qxf7+ (21. Bxc5 $2 Qxa1+ 22. Kf2 Bxc5+ 23. Qxc5 Qd4+ 24. Qxd4 exd4 $19) 21... Kd8 22. Qxf5 $18) 20. Rg3 $1 {[%emt 0:00:33]} h6 $2 {[%emt 0:13:44] [#]} (20... Bd7 21. Qd5 O-O-O 22. Nxf7 (22. Bxc5 Bc6 $16) 22... Qe4) 21. Nxf7 $1 {[%emt 0:25:38][%mdl 576] Double Attack} Ne4 {[%emt 0:06:28]} 22. Qd5 {[%emt 0:04:40]} Nxg3 {[%emt 0:02:50]} 23. Qxe5+ {[%emt 0:01:03]} Kxf7 {[%emt 0:00:08]} 24. hxg3 {[%emt 0:00:04]} Qh1+ {[%emt 0:01:22]} (24... Qxa4 25. Bh5+ (25. Qxh8 Bxa3 26. Qh7+ Ke8 $14) 25... Kg8 26. Qd5+ Kh7 27. Bg6+ Kg7 28. Qf7#) 25. Kf2 $1 {[%emt 0:19:58]} Qc6 {[%emt 0:01:35][%cal Of8a3] Strongly threatening ...Bxa3!} 26. Bh5+ $2 {[%emt 0:05:34]} (26. Qxh8 {[%csl Ga3][%cal Rh8f8]} Bc5+ 27. Bxc5 {[%mdl 64] Overworked Piece} Qxc5+ 28. Kg2 Bxf5 29. Bh5+ (29. Qxa8 Be4+ 30. Kf1 Qf5+ 31. Ke1 Qa5+ 32. Kd1 Qd5+ 33. Ke1 Qa5+ 34. Kd1 Qd5+ 35. Bd3 Bxd3 $14) 29... Ke6 30. Qxh6+ (30. Qxa8 Qxc2+ 31. Kf3 Qc3+ 32. Kg2 Be4+ 33. Kh3 Bf5+ 34. Kg2 Be4+ 35. Kh3 Bf5+ 36. Kg2 $11) 30... Kd7 31. Qg7+ Kc8 32. Bf3) 26... Kg8 {[%emt 0:00:17]} 27. Bxf8 {[%emt 0:00:04][%csl Gf8][%cal Re5g7]} Rh7 {[%emt 0:03:53] Prevents Qg7+. And now ...Bxf5 would win. Black is weak on the dark squares} 28. Bg6 {[%emt 0:01:13] A strong pair of Bishops.} Rc7 {[%emt 0:00:29]} 29. Bxh6 $40 {[%emt 0:07:55][%mdl 128] f6 is the strong threat. Black is in trouble. White has more active pieces.} Qc5+ $2 {[%emt 0:10:25]} (29... Qxc2+ {might work better.} 30. Ke1 (30. Kf1 Qc6 $16) 30... Qc3+ 31. Qxc3 Rxc3) 30. Qxc5 {[%emt 0:00:14]} Rxc5 {[%emt 0:00:02]} 31. g4 {[%emt 0:02:45]} Rxc2+ $2 {[%emt 0:02:16]} (31... Rc6 32. Re1 Rxg6 33. fxg6 Bxg4) 32. Kg3 $1 {[%emt 0:00:07]} Bd7 {[%emt 0:03:29]} 33. Re1 $1 {[%emt 0:00:42] Threatens to win with Re7.} Rc6 {[%emt 0:01:09]} 34. Re7 {[%emt 0:02:43]} Be8 {[%emt 0:02:44]} 35. Bh7+ $1 {[%emt 0:01:46]} (35. Rxe8+ Rxe8 36. Bxe8 Rxh6 $11) (35. Bxe8 Rxh6 36. Bg6 Rb8 $14) 35... Kh8 {[%emt 0:00:01]} 36. Bf4 {[%emt 0:02:24] Intending Be5+ and mate. White is clearly winning.} Rc5 {[%emt 0:00:22]} 37. f6 {[%emt 0:00:11]} (37. Rxb7 Bxa4 38. f6 Rf8 $18) 37... Bxa4 {[%emt 0:01:58]} 38. Bg6 {[%emt 0:03:05] Dodges Re8. White wants to mate with Rh7+.} (38. Rxb7 Bc6 39. Rc7 Bb5 $18) 38... Rf8 {[%emt 0:00:22]} 39. g5 {[%emt 0:00:00]} (39. Rxb7 Rxf6 40. Bf5 Bb5 $11) (39. Bh6 $142 {Threatening mate with Rh7+.} Bc2 40. Bxc2 Rcc8 41. Bg6 Kg8 42. Rg7+ Kh8 43. Rh7+ {[%mdl 64] Discovered Attack} Kg8 44. Bg7) 39... Rc3+ {[%emt 0:01:30]} 40. Kf2 {[%emt 0:00:00]} Bc2 {[%emt 0:00:00]} 41. Bxc2 {[%emt 0:07:58]} Rxc2+ {[%emt 0:01:13][%mdl 4096] Endgame KRR-KRB} 42. Kg3 {[%emt 0:00:03]} Rc5 {[%emt 0:06:59]} 43. Rxb7 {[%emt 0:03:39]} Rb5 {[%emt 0:07:50]} 44. Ra7 {[%emt 0:02:54]} Kg8 {[%emt 0:01:42]} 45. Rg7+ {[%emt 0:00:17]} ({Weaker is} 45. Rxa6 Kf7 $11) 45... Kh8 {[%emt 0:00:01]} 46. Kg4 {[%emt 0:01:08]} a5 {[%emt 0:01:11]} 47. Bd6 {[%emt 0:08:58]} Rd8 {[%emt 0:01:06]} 48. Be7 {[%emt 0:00:05]} Rc8 {[%emt 0:04:54]} 49. Kh5 {[%emt 0:00:44]} Rg8 {[%emt 0:03:44]} 50. Rg6 {[%emt 0:00:49]} Rxg6 {[%emt 0:02:08]} 51. Kxg6 {[%emt 0:00:09] KR-KB} Rb6 {[%emt 0:00:04]} 52. Kh6 {[%emt 0:04:40]} a4 {[%emt 0:02:22]} 53. g6 {[%emt 0:00:07]} Rb1 {[%emt 0:00:20]} 54. f7 {[%emt 0:00:04][%csl Gh6][%cal Rg6g7]} Rh1+ {[%emt 0:00:09]} 55. Kg5 {[%emt 0:00:04][%cal Rf7f8]} Rg1+ {[%emt 0:00:12]} 56. Kh5 {[%emt 0:00:12][%cal Rf7f8]} Rh1+ {[%emt 0:00:13] [#]} 57. Kg4 $1 {[%emt 0:00:07][%cal Rf7f8]} Rg1+ {[%emt 0:00:18]} 58. Kh3 {[%emt 0:00:28][%cal Rf7f8]} Rf1 {[%emt 0:00:15] [#]} 59. Bf8 $1 {[%emt 0:00:04] White threatens g7+ and mate.} ({Stronger than} 59. f8=R+ Rxf8 60. Bxf8 Kg8 $11) ({Worse is} 59. f8=B Kg8 60. g7 a3 61. Bxa3 Rf3+ 62. Kh4 Rxa3 $11) 59... Rg1 {[%emt 0:03:33]} 60. Bc5 {[%emt 0:00:41] Artfully played by Tabatabaei.   Weighted Error Value: White=0.25 (precise) /Black=0.63} 1-0